[Event "Czech Open-GM 2022"]
[Site "Pardubice"]
[Date "2022.07.23"]
[Round "2.37"]
[White "Salem Eid, Ahmed"]
[Black "Dixit, Nikhil"]
[Result "0-1"]
[ECO "C07"]
[WhiteElo "2165"]
[BlackElo "2325"]
[Annotator "TA"]
[PlyCount "69"]
[EventDate "2022.07.22"]
[EventType "swiss"]
[EventCountry "CZE"]
[SourceTitle "playchess.com"]
[Source "ChessBase"]
[SourceQuality "1"]
[TimeControl "40/5400+30:1800+30"]

{[%evp 16,69,13,0,33,28,26,-41,-28,-49,-48,-354,-358,-336,-358,-344,-347,-314,-224,-480,-490,-488,-476,-472,-407,-413,-418,-414,-419,-608,-575,-634,-577,-805,-704,-685,-690,-668,-620,-588,-536,-718,-713,-823,-812,-1056,-1033,-967,-913,-2583,-2669,-2168,-2127,-1725,-1558,-1920]} 1. e4 {[%emt 0:00:04]} e6 {[%emt 0:00:35]} 2. d4 {[%emt 0:00:21]} d5 {[%emt 0:00:03]} 3. Nd2 {[%emt 0:00:12]} c5 {[%emt 0:00:03]} 4. dxc5 {[%emt 0:00:39]} Bxc5 {[%emt 0:01:08]} 5. Bd3 {[%emt 0:00:51]} Nf6 {[%emt 0:02:32]} 6. Qe2 {[%emt 0:01:15]} Nc6 {[%emt 0:03:43]} 7. Ngf3 {[%emt 0:02:13]} O-O {[%emt 0:18:26]} 8. c3 {[%emt 0:11:41]} e5 {[%emt 0:07:00]} 9. O-O {[%emt 0:06:35]} Bg4 {[%emt 0:02:55] D05: Colle System with ...e6.} 10. h3 {[%emt 0:08:37]} Bh5 {[%emt 0:01:19]} 11. b4 {[%emt 0:04:12]} (11. exd5 $11 Qxd5 12. Ne4) 11... Bb6 $15 {[%emt 0:02:36] Black is slightly better.} 12. b5 {[%emt 0:01:04] [#]} Ne7 $146 {[%emt 0:05:10]} ({Predecessor:} 12... Nb8 13. g4 dxe4 14. Nxe4 Bg6 15. Bg5 Nbd7 16. Rfd1 Qc7 17. Rac1 Nxe4 18. Bxe4 Bxe4 19. Qxe4 {0-1 (31) Heyland,W-Harms,P Wiesbaden 1998}) 13. g4 $2 {[%emt 0:01:43][%mdl 8192] [#]} ({Better is} 13. c4 $15) 13... Ng6 $1 $19 {[%emt 0:05:27] ...Nf4 is the strong threat.} 14. Nb3 {[%emt 0:11:23] [#]} Nxg4 {[%emt 0:03:02][%mdl 512]} 15. hxg4 {[%emt 0:07:17]} Bxg4 {[%emt 0:00:57]} 16. Qd1 {[%emt 0:16:29]} Qf6 {[%emt 0:06:22]} 17. Be2 $2 {[%emt 0:03:55]} (17. Bg5 Qxf3 18. Qxf3 Bxf3 19. exd5) 17... dxe4 {[%emt 0:05:04]} 18. Nh2 {[%emt 0:09:55]} Bh3 {[%emt 0:03:45]} 19. Bg4 {[%emt 0:02:45]} Bxf1 {[%emt 0:04:48]} 20. Qxf1 {[%emt 0:00:05]} Nf4 {[%emt 0:00:34]} 21. c4 {[%emt 0:01:25]} h5 {[%emt 0:02:00]} 22. Bxf4 {[%emt 0:04:10]} (22. Be2 $142 Bd4 23. Bxf4 Bxa1 24. Bd2) 22... exf4 {[%emt 0:01:20] Black is clearly winning.} 23. Bd1 {[%emt 0:01:39]} f3 {[%emt 0:01:44]} 24. Rc1 {[%emt 0:01:13]} Qh4 {[%emt 0:01:09] Threatens to win with ...Bc7.} 25. Bxf3 {[%emt 0:02:02]} Bc7 {[%emt 0:03:24][%csl Gc7][%cal Rh4h2]} 26. Qg2 {[%emt 0:00:54]} exf3 {[%emt 0:01:11]} 27. Nxf3 {[%emt 0:00:15]} Qf6 {[%emt 0:00:08]} 28. Nc5 {[%emt 0:00:51]} Rfe8 {[%emt 0:01:35]} 29. Rd1 {[%emt 0:00:41]} Rad8 {[%emt 0:01:01]} 30. Rd5 {[%emt 0:00:32]} Rxd5 {[%emt 0:01:02]} 31. cxd5 {[%emt 0:00:02]} b6 {[%emt 0:01:13]} 32. Nb3 {[%emt 0:00:52]} Re4 {[%emt 0:01:14] And now ...Rg4 would win.} 33. Qh3 {[%emt 0:00:32]} Rg4+ {[%emt 0:00:36]} 34. Kf1 {[%emt 0:00:07]} Qf5 {[%emt 0:00:55] ( -> ...Qd3+)} 35. Nbd4 {[%emt 0:00:20] Black took control after the opening.  Weighted Error Value: White=1.01/Black=0.16 (very precise)} 0-1

[Event "Czech Open-GM 2022"]
[Site "Pardubice"]
[Date "2022.07.23"]
[Round "2.38"]
[White "Slovak, Kilian"]
[Black "Levitan, Caleb Levi"]
[Result "1/2-1/2"]
[ECO "C78"]
[WhiteElo "2321"]
[BlackElo "1826"]
[Annotator "TA"]
[PlyCount "134"]
[EventDate "2022.07.22"]
[EventType "swiss"]
[EventCountry "CZE"]
[SourceTitle "playchess.com"]
[Source "ChessBase"]
[SourceQuality "1"]
[TimeControl "40/5400+30:1800+30"]

{[%evp 19,134,31,50,27,33,27,100,0,8,8,18,12,75,73,68,56,96,87,88,35,229,214,229,195,232,234,379,387,384,381,382,381,443,425,465,471,472,472,483,440,592,456,422,435,437,417,504,489,497,487,511,467,639,500,596,391,454,179,167,142,137,150,145,145,144,150,157,152,145,151,146,143,165,148,142,0,175,120,168,150,227,227,223,191,173,184,182,158,155,170,238,218,228,206,208,169,164,167,162,138,175,127,167,0,0,0,0,0,0,0,0,0,0,0,0,0,1693]} 1. e4 {[%emt 0:03:28]} e5 {[%emt 0:00:15]} 2. Nf3 {[%emt 0:01:06]} Nc6 {[%emt 0:00:04]} 3. Bb5 {[%emt 0:00:09]} a6 {[%emt 0:00:09]} 4. Ba4 {[%emt 0:00:05]} Nf6 {[%emt 0:00:24]} 5. O-O {[%emt 0:00:23]} Bc5 {[%emt 0:00:12]} 6. c3 {[%emt 0:01:17]} b5 {[%emt 0:00:08]} 7. Bb3 {[%emt 0:01:43]} d6 {[%emt 0:00:18]} 8. a4 {[%emt 0:01:05]} Bg4 {[%emt 0:01:23]} 9. h3 {[%emt 0:05:50]} Bh5 {[%emt 0:01:15]} 10. d3 {[%emt 0:01:29]} O-O {[%emt 0:02:29]} 11. Nbd2 {[%emt 0:01:17] C78: Ruy Lopez: Archangelsk and Möller Defences.} Rb8 {[%emt 0:03:30]} 12. Re1 {[%emt 0:01:40]} Re8 {[%emt 0:03:40]} (12... b4 $11) 13. Nf1 {[%emt 0:01:56] [#]} (13. axb5 $16 axb5 14. Nf1) 13... Na5 $146 {[%emt 0:02:30]} ({Predecessor:} 13... d5 14. exd5 Na5 15. Bc2 b4 16. d4 exd4 17. Rxe8+ Qxe8 18. cxd4 Bxf3 19. Qxf3 Bxd4 {1-0 (37) Gallagher,J (2501)-Kosteniuk,A (2497) Leukerbad 2011}) 14. Bc2 {[%emt 0:01:28]} b4 {[%emt 0:00:04]} 15. Ng3 {[%emt 0:05:36]} Bg6 {[%emt 0:01:25]} (15... bxc3 $11 {keeps the balance.} 16. bxc3 Bg6) 16. Bg5 $1 $16 {[%emt 0:10:46]} h6 {[%emt 0:06:48]} 17. Bh4 {[%emt 0:02:09]} b3 {[%emt 0:19:03]} 18. Bb1 {[%emt 0:00:19]} Ba7 {[%emt 0:00:29]} 19. Nh2 {[%emt 0:03:16]} (19. Qd2 $16) 19... Qd7 $2 {[%emt 0:11:17]} (19... d5 $14) 20. Bxf6 $18 {[%emt 0:00:58]} gxf6 {[%emt 0:00:02]} 21. Nh5 {[%emt 0:02:38]} Qe6 {[%emt 0:05:48]} 22. Ng4 {[%emt 0:02:20][%cal Od1d2]} Bxh5 {[%emt 0:00:18]} (22... Kf8 $142) 23. Nxh6+ {[%emt 0:00:10][%mdl 64] Discovered Attack} Kf8 {[%emt 0:01:08]} 24. Qxh5 {[%emt 0:00:13] And now Nf5 would win.} Ke7 {[%emt 0:00:07]} 25. d4 {[%emt 0:01:12]} Rf8 {[%emt 0:04:03]} 26. Bd3 {[%emt 0:02:48]} c6 {[%emt 0:09:23]} 27. Rad1 {[%emt 0:02:14]} Kd8 {[%emt 0:07:24]} 28. Bxa6 {[%emt 0:04:59]} (28. dxe5 fxe5 29. Bxa6 Kc7 $18) 28... Kc7 {[%emt 0:01:06]} 29. Nf5 {[%emt 0:05:07]} d5 {[%emt 0:03:20]} 30. exd5 {[%emt 0:05:48]} cxd5 {[%emt 0:00:26]} 31. Bb5 {[%emt 0:00:06]} Rg8 {[%emt 0:01:16] Prevents Ng7.} 32. Qf3 {[%emt 0:01:59] aiming for dxe5.} Rg5 {[%emt 0:01:55]} 33. Ne3 {[%emt 0:01:32]} e4 {[%emt 0:02:12]} 34. Qf4+ {[%emt 0:00:21]} Kb7 {[%emt 0:00:11]} 35. h4 {[%emt 0:04:37]} Rh5 {[%emt 0:01:30]} 36. Be2 {[%emt 0:05:23]} Rh7 {[%emt 0:01:13][%cal Bh5h7,Bh7g7,Bg7g5][%mdl 32]} 37. h5 {[%emt 0:01:32]} Rg8 {[%emt 0:00:52]} 38. Qf5 $2 {[%emt 0:01:27]} (38. Bg4 Rxg4 39. Qxg4 (39. Nxg4 Bb8 $11)) 38... Rhg7 {[%emt 0:00:20]} 39. g3 {[%emt 0:00:50]} (39. Qxd5+ $2 Qxd5 40. Ba6+ (40. Nxd5 $2 Rxg2+ 41. Kh1 Bb8 $19) 40... Kxa6 $19) 39... Rg5 {[%emt 0:01:56]} 40. Qxe6 {[%emt 0:00:25]} fxe6 {[%emt 0:00:00]} 41. Kh2 {[%emt 0:35:32]} f5 {[%emt 0:30:09]} 42. Rg1 {[%emt 0:02:51]} Bb8 {[%emt 0:00:27]} 43. Kh1 {[%emt 0:07:15]} Bc7 {[%emt 0:04:16]} 44. Rg2 {[%emt 0:00:00]} Nc6 {[%emt 0:00:00]} 45. Rdg1 {[%emt 0:00:00]} Ne7 {[%emt 0:00:00]} 46. Ra1 {[%emt 0:00:00]} Nc6 {[%emt 0:00:00]} 47. Rag1 {[%emt 0:00:00]} Ne7 $1 {[%emt 0:00:00]} 48. Bd1 {[%emt 0:00:00]} (48. Re1 $18) 48... Bd6 {[%emt 0:00:00]} (48... Kc6 $16 49. Be2 (49. Bxb3 f4 $17) 49... Kb7) 49. Nf1 {[%emt 0:00:00][%cal Be3f1,Bf1d2,Bd2b3,Bb3c5][%mdl 32]} ({Weaker is} 49. Bxb3 Rxh5+ 50. Rh2 Rxh2+ 51. Kxh2 f4 $15) 49... Kc7 {[%emt 0:00:00]} (49... Rh8 $16 50. Ne3 (50. Bxb3 Rgxh5+ 51. Rh2 Rxh2+ 52. Nxh2 f4 $11) 50... Rg7) 50. Nd2 {[%emt 0:00:00]} Rh8 {[%emt 0:00:00]} 51. f4 {[%emt 0:00:00]} exf3 {[%emt 0:00:00]} 52. Bxf3 {[%emt 0:00:00]} Ng8 {[%emt 0:00:00]} 53. Nxb3 {[%emt 0:00:15]} Nf6 {[%emt 0:00:00]} 54. Rh2 {[%emt 0:00:23]} Bxg3 {[%emt 0:00:00]} (54... Ne4 {is a better defense.}) 55. Nc5 {[%emt 0:00:40]} Kd6 {[%emt 0:00:00]} 56. Rh3 {[%emt 0:02:32]} f4 {[%emt 0:00:00]} 57. b4 {[%emt 0:00:18]} e5 {[%emt 0:00:00]} 58. dxe5+ {[%emt 0:00:39]} Rxe5 {[%emt 0:00:00] [#]} 59. Rd1 $1 {[%emt 0:03:54]} Re3 {[%emt 0:00:00]} 60. Rd3 {[%emt 0:00:19]} (60. Kg2 $18) 60... Rhe8 {[%emt 0:00:00] [#]} 61. h6 $2 {[%emt 0:01:40]} (61. Rxe3 $1 $18 Rxe3 62. Kg2) 61... Re1+ $1 $11 {[%emt 0:00:00] The position is equal.} 62. Kg2 {[%emt 0:00:05] Strongly threatening Rd2.} R8e2+ {[%emt 0:00:00]} 63. Bxe2 {[%emt 0:00:09]} Rxe2+ {[%emt 0:00:00]} 64. Kg1 {[%emt 0:01:52]} Re1+ {[%emt 0:00:00]} 65. Kg2 {[%emt 0:00:45]} Re2+ {[%emt 0:00:00]} 66. Kf1 {[%emt 0:00:13]} Re1+ {[%emt 0:00:00]} 67. Kg2 {[%emt 0:00:05]} Ke5 $2 {[%mdl 40960] Weighted Error Value: White=0.27 (precise) /Black=0.34. An unexpected result.} (67... Re2+ $11 68. Kf1 Re1+ 69. Kg2) 1/2-1/2

[Event "Czech Open-GM 2022"]
[Site "Pardubice"]
[Date "2022.07.23"]
[Round "2.39"]
[White "Livaic, Leon"]
[Black "Rakshitta Ravi"]
[Result "1-0"]
[ECO "C32"]
[WhiteElo "2576"]
[BlackElo "2185"]
[Annotator "TA"]
[PlyCount "81"]
[EventDate "2022.07.22"]
[EventType "swiss"]
[EventCountry "CZE"]
[SourceTitle "playchess.com"]
[Source "ChessBase"]
[SourceQuality "1"]
[TimeControl "40/5400+30:1800+30"]

{[%evp 13,81,57,81,58,108,108,108,108,114,114,112,118,112,112,111,112,114,115,146,146,142,145,147,146,192,186,196,189,185,175,164,166,198,223,220,204,260,270,254,204,369,366,362,347,502,490,535,535,634,628,612,612,1087,1086,1493,1446,1397,1345,2645,2439,5700,1205,29985,29986,29986,29987,29987,29987,29986,29985]} 1. e4 {[%emt 0:00:10]} e5 {[%emt 0:01:39]} 2. f4 {[%emt 0:00:22]} d5 {[%emt 0:00:23]} 3. exd5 {[%emt 0:00:07]} e4 {[%emt 0:00:05]} 4. d3 {[%emt 0:00:13]} Nf6 {[%emt 0:00:07]} 5. dxe4 {[%emt 0:00:07]} Nxe4 {[%emt 0:00:18]} 6. Nf3 {[%emt 0:00:11]} Bc5 {[%emt 0:00:42]} 7. Qe2 {[%emt 0:00:27]} f5 {[%emt 0:00:33]} ({Not} 7... Bf2+ 8. Kd1 Qe7 9. Ne5 $16) 8. Be3 {[%emt 0:01:26] Bxc5 is the strong threat. C32: Falkbeer Counter Gambit: 3 exd5 e4 4 d3 Nf6.} ({Much worse is} 8. Nc3 O-O $14) 8... Qxd5 {[%emt 0:02:54]} (8... O-O $1 $14) 9. Bxc5 $16 {[%emt 0:00:27]} Qxc5 {[%emt 0:00:10]} 10. Nc3 {[%emt 0:00:25] Hoping for 0-0-0. White is better.} O-O {[%emt 0:06:05]} 11. Nxe4 {[%emt 0:00:21]} fxe4 {[%emt 0:00:05]} 12. Qxe4 {[%emt 0:00:31]} Kh8 {[%emt 0:05:07]} 13. O-O-O $1 {[%emt 0:02:06][%cal Ba1d1,Bd1d5,Bd5c5][%mdl 32] Threatens to win with Bd3.} Bf5 {[%emt 0:00:24] [#]} 14. Rd5 $146 {[%emt 0:19:32] White is more active.} ({Predecessor:} 14. Qc4 Qe3+ 15. Kb1 Nc6 16. Bd3 Be6 17. Qb5 Qxf4 18. Ng5 Bg8 19. h4 Qb4 20. c3 Qxb5 21. Bxb5 {0-1 (74) Moser,E (2361)-Neubauer,M (2370) Mureck 2001}) 14... Bxe4 {[%emt 0:03:56][%csl Ge4][%cal Rc5c2]} 15. Rxc5 {[%emt 0:00:05]} Nc6 {[%emt 0:09:17] [#]} 16. Ng5 $1 {[%emt 0:09:40]} Rxf4 {[%emt 0:00:17]} 17. Nxe4 {[%emt 0:05:37]} Rxe4 {[%emt 0:00:06] [#]} 18. Ba6 $1 {[%emt 0:00:41]} Nd8 {[%emt 0:10:23] [#]} (18... Rb8 $16) 19. Rf1 $1 $18 {[%emt 0:01:23][%cal Rf1f8]} Re8 {[%emt 0:00:38] [#] Prevents Rf8+.} 20. Re5 $3 {[%emt 0:01:09][%cal Re5e8][%mdl 512]} Rg8 {[%emt 0:03:41]} 21. Bb5 $36 {[%emt 0:02:11][%mdl 2048] White has strong initiative.} a6 {[%emt 0:00:18]} 22. Ba4 {[%emt 0:01:42]} Nc6 {[%emt 0:01:59]} 23. Bxc6 {[%emt 0:00:05]} bxc6 {[%emt 0:00:05][%mdl 4096] Endgame KRR-KRR} 24. Re7 {[%emt 0:03:19]} Raf8 {[%emt 0:01:19]} 25. Rxf8 {[%emt 0:08:23]} Rxf8 {[%emt 0:00:02]} 26. Rxc7 {[%emt 0:04:39] KR-KR} h5 $2 {[%emt 0:00:05]} (26... Rf1+ 27. Kd2 g5) 27. b4 {[%emt 0:00:20]} Rf6 {[%emt 0:07:14]} 28. g3 {[%emt 0:03:26]} Kh7 {[%emt 0:00:26]} (28... Kg8 $142 29. Ra7 c5 30. bxc5 Kf8) 29. Kb2 {[%emt 0:01:25]} Kg6 {[%emt 0:02:25]} 30. a4 {[%emt 0:00:56]} Rd6 {[%emt 0:01:16]} 31. Kb3 {[%emt 0:00:44]} Kf6 {[%emt 0:00:06]} 32. Ra7 {[%emt 0:00:13]} Rd2 {[%emt 0:04:15]} 33. Rxa6 {[%emt 0:00:07]} Rxh2 {[%emt 0:00:05]} 34. Rxc6+ {[%emt 0:00:07]} Ke7 {[%emt 0:00:04]} 35. Rc7+ {[%emt 0:00:42]} Kf6 {[%emt 0:00:17]} 36. a5 {[%emt 0:00:06][%cal Ba4a5,Ba5a6,Ba6a7][%mdl 32] aiming for a6.} Rh3 {[%emt 0:02:11]} 37. Rc3 {[%emt 0:00:05]} (37. a6 $142 Rxg3+ 38. c3) 37... g5 {[%emt 0:01:02]} 38. a6 {[%emt 0:00:05] White mates.} Rh1 {[%emt 0:00:03]} 39. Kb2 {[%emt 0:00:17]} Re1 {[%emt 0:00:11]} 40. a7 {[%emt 0:00:05]} Re8 {[%emt 0:00:03]} 41. b5 {[%emt 0:30:05] Weighted Error Value: White=0.03 (flawless) /Black=0.59} 1-0

[Event "Czech Open-GM 2022"]
[Site "Pardubice"]
[Date "2022.07.23"]
[Round "2.40"]
[White "Stocek, Jiri"]
[Black "Brozka, Karel"]
[Result "1-0"]
[ECO "D55"]
[WhiteElo "2548"]
[BlackElo "2188"]
[Annotator "TA"]
[PlyCount "169"]
[EventDate "2022.07.22"]
[EventType "swiss"]
[EventCountry "CZE"]
[SourceTitle "playchess.com"]
[Source "ChessBase"]
[SourceQuality "1"]
[TimeControl "40/5400+30:1800+30"]

{[%evp 18,169,0,0,0,0,10,10,12,9,16,7,8,5,10,-50,-31,-26,-31,-27,-25,-14,-25,-22,-15,-31,-17,-21,-6,-46,0,-8,0,0,0,0,0,0,11,4,11,11,12,0,0,0,0,0,0,0,6,0,0,0,0,0,0,0,0,0,0,0,4,5,4,0,0,0,0,0,0,0,26,0,0,0,0,0,0,-6,-8,-8,-8,-10,-4,-4,-4,-4,-4,-4,0,-6,-4,-4,0,-8,-8,-8,0,0,0,-8,0,0,0,0,-1,-33,-13,-27,0,0,0,0,20,20,71,71,71,71,262,220,245,192,29973,29970,29955,793,1069,441,525,0,0,0,419,0,0,0,0,0,0,0,887,1079,949,754,1153,1100,1179,1117,902,385,29986,29986]} 1. Nf3 {[%emt 0:04:04]} Nf6 {[%emt 0:00:12]} 2. c4 {[%emt 0:00:30]} e6 {[%emt 0:00:53]} 3. Nc3 {[%emt 0:02:05]} d5 {[%emt 0:00:25]} 4. d4 {[%emt 0:00:48]} Be7 {[%emt 0:00:14]} 5. Bg5 {[%emt 0:01:33]} O-O {[%emt 0:00:16]} 6. e3 {[%emt 0:01:44]} b6 {[%emt 0:00:31]} 7. Bd3 {[%emt 0:02:55]} Bb7 {[%emt 0:00:49]} 8. O-O {[%emt 0:05:59]} Nbd7 {[%emt 0:00:15]} 9. Rc1 {[%emt 0:11:50] 9.Qe2 gains popularity.} c5 {[%emt 0:03:22]} 10. Qe2 {[%emt 0:01:13]} cxd4 {[%emt 0:02:41] E12: Queen's Indian: Unusual White 4th moves, 4 a3, 4 Nc3 Bb7 5 a3 and 4 Nc3 Bb7 .} 11. exd4 {[%emt 0:00:06]} Rc8 12. cxd5 Nxd5 {[%emt 0:20:48] [#] The position is equal.} 13. Nxd5 $146 {[%emt 0:17:58]} ({Predecessor:} 13. Bxe7 Qxe7 14. Nxd5 Bxd5 15. b3 h6 16. Ba6 Bxf3 17. Qxf3 Rxc1 18. Rxc1 {1-0 (42) Quintero Rangel,E (1879)-Aguirre Reyes,J (1546) Santander 2011}) 13... Bxg5 {[%emt 0:00:32]} 14. Rxc8 {[%emt 0:02:00]} Bxc8 {[%emt 0:00:38] This bishop pair is nice.} 15. Qe4 {[%emt 0:05:07][%csl Gd3][%cal Re4h7]} g6 {[%emt 0:01:06]} 16. Nb4 {[%emt 0:05:41]} ({Better is} 16. Nxg5 $11 Qxg5 17. Ne3) 16... Bh6 {[%emt 0:16:28]} (16... Nf6 $5 {[%cal Rf6e4]} 17. Qe5 Bh6 $11) 17. Nc6 {[%emt 0:08:11]} Qc7 {[%emt 0:01:20]} 18. Ne7+ {[%emt 0:07:27]} Kg7 {[%emt 0:09:53]} 19. Nxc8 {[%emt 0:00:14]} Rxc8 {[%emt 0:00:09]} 20. g3 {[%emt 0:00:06]} Nf6 {[%emt 0:02:05]} (20... Rd8 {keeps more tension.} 21. Rd1 Nf6 22. Qe5 Qb7) 21. Qe2 {[%emt 0:00:14]} Qd6 {[%emt 0:01:52]} 22. Rd1 {[%emt 0:03:00]} (22. Qe5 {is more complex.} Rd8 23. Rd1 Qe7 24. Qe2) 22... Qd5 {[%emt 0:02:54]} 23. b4 Kg8 {[%emt 0:02:55]} (23... Qd8 $15) 24. b5 {[%emt 0:02:19]} Rc1 {[%emt 0:12:54]} 25. Rxc1 {[%emt 0:01:49]} Bxc1 {[%emt 0:00:02]} 26. Bc4 {[%emt 0:01:06]} Qd6 {[%emt 0:03:20]} 27. Qc2 {[%emt 0:01:32]} Bh6 {[%emt 0:03:07]} 28. Bb3 {[%emt 0:01:24]} Bf8 {[%emt 0:01:36]} 29. Ne5 {[%emt 0:04:24]} Be7 {[%emt 0:07:32]} 30. Qc8+ {[%emt 0:01:51]} Kg7 {[%emt 0:01:24]} 31. Nc6 {[%emt 0:03:19]} Ne4 {[%emt 0:01:16]} 32. Qb8 {[%emt 0:01:51]} Qa3 {[%emt 0:01:33]} 33. Qe5+ {[%emt 0:00:30]} Nf6 {[%emt 0:00:30]} 34. Kg2 {[%emt 0:01:14]} Bd6 {[%emt 0:00:35] Inhibits Qb8.} 35. Qe2 {[%emt 0:00:17]} h5 {[%emt 0:00:44]} 36. Nd8 {[%emt 0:00:55][%cal Od8f7]} Be7 $1 {[%emt 0:01:23]} 37. Nc6 {[%emt 0:00:32][%cal Od4d5] d5! is the strong threat.} Bd6 {[%emt 0:00:11]} 38. Qd2 {[%emt 0:01:35]} h4 {[%emt 0:01:24]} 39. Qe2 {[%emt 0:00:48]} hxg3 {[%emt 0:00:21]} 40. hxg3 {[%emt 0:00:05]} Bc7 {[%emt 0:01:14]} 41. Qc4 {[%emt 0:09:27]} Nd5 {[%emt 0:05:17]} 42. Qc2 {[%emt 0:01:10]} Ne7 {[%emt 0:07:41]} 43. Qc3 {[%emt 0:02:33]} Nxc6 {[%emt 0:05:46]} 44. bxc6 $11 {[%emt 0:00:26][%mdl 4096] Endgame KQB-KQB} Kg8 {[%emt 0:01:34]} 45. Qc4 {[%emt 0:01:06]} Qd6 {[%emt 0:01:18]} 46. Qa4 {[%emt 0:02:33]} Kg7 {[%emt 0:01:02]} 47. Bd1 {[%emt 0:03:13]} b5 {[%emt 0:04:00]} 48. Qxb5 {[%emt 0:00:17]} Qxd4 {[%emt 0:00:03]} 49. Bf3 {[%emt 0:00:14]} Bb6 {[%emt 0:00:24]} 50. Qe2 {[%emt 0:00:06]} Qc5 {[%emt 0:01:40]} 51. Qb2+ {[%emt 0:00:15]} Kg8 {[%emt 0:01:01]} 52. Kg1 {[%emt 0:02:22]} Qd6 {[%emt 0:01:00] Black wants to play ...Qxg3+.} 53. Kf1 {[%emt 0:00:36]} Qc5 {[%emt 0:02:12]} 54. Qd2 {[%emt 0:01:01]} Qc4+ {[%emt 0:00:52]} (54... Ba5 {is interesting.} 55. Qb2 Kf8 56. Kg2 Bb6) 55. Kg2 {[%emt 0:00:17]} Qc5 {[%emt 0:00:39]} (55... Kg7 {looks sharper.} 56. Qb2+ Kf8 57. Qa3+ Kg8) 56. Qe2 {[%emt 0:03:59]} Qc3 {[%emt 0:01:09]} 57. Be4 {[%emt 0:01:34]} f5 {[%emt 0:01:29]} 58. Bf3 {[%emt 0:01:05]} Kf7 {[%emt 0:00:22]} 59. a4 {[%emt 0:05:13]} Qc5 {[%emt 0:00:33]} 60. Qd2 {[%emt 0:00:22]} Kf6 {[%emt 0:01:21]} 61. Kh3 {[%emt 0:01:41]} g5 {[%emt 0:01:07] aiming for ...g4+.} (61... Qxf2 $2 62. Qxf2 Bxf2 63. c7 $18) 62. g4 {[%emt 0:00:14]} fxg4+ {[%emt 0:00:36]} (62... Qxf2 $2 63. Qxf2 Bxf2 64. c7 $18) 63. Kxg4 {[%emt 0:00:22]} Qf5+ {[%emt 0:00:50]} 64. Kg3 {[%emt 0:00:03]} Bc7+ {[%emt 0:00:33]} 65. Kg2 {[%emt 0:00:04]} g4 {[%emt 0:00:28]} 66. Qd4+ {[%emt 0:01:04]} Kg5 {[%emt 0:00:30]} (66... e5 $11 {keeps the balance.} 67. Qxg4 Qxg4+ 68. Bxg4 e4) 67. Qg7+ $1 $16 {[%emt 0:00:52]} Kh5 {[%emt 0:00:13]} 68. Qxc7 {[%emt 0:01:02] Really sharp!} Qxf3+ $2 {[%emt 0:00:48] KQ-KQ} (68... gxf3+ $16 {keeps fighting.} 69. Kh2 Qe4) 69. Kg1 $18 {[%emt 0:00:07]} Qd1+ {[%emt 0:00:32]} 70. Kh2 {[%emt 0:00:17]} Qxa4 $2 {[%emt 0:00:28]} (70... Qd5 $18) 71. Qf7+ {[%emt 0:00:41]} Kg5 {[%emt 0:00:18]} 72. Qxe6 {[%emt 0:02:27]} (72. Qe7+ $142 Kh5 73. Qc5+ e5 74. Qxe5+ Kg6 75. Qd6+ Kh7 76. Qd7+ Kh8 77. Qe8+ Kg7 78. Qe5+ Kg6 79. Qd6+ Kh7 80. c7) 72... Qf4+ {[%emt 0:00:36]} 73. Kg1 {[%emt 0:00:06]} (73. Kg2 $142) 73... g3 {[%emt 0:00:34] [#]} 74. Qe7+ $2 {[%emt 0:01:13]} (74. fxg3 $1 $18 Qxg3+ 75. Kf1) 74... Kg6 $11 {[%emt 0:00:33]} 75. Qe6+ $2 {[%emt 0:00:24][%mdl 8192]} (75. Qxa7 $11 Qc1+ 76. Kg2 gxf2 77. Kxf2) 75... Kg5 $18 {[%emt 0:00:18] [#]} 76. Qd5+ $2 {[%emt 0:00:37]} ({White must play} 76. fxg3 $1 $18 Qxg3+ 77. Kf1) 76... Kh6 $11 {[%emt 0:00:42]} 77. fxg3 {[%emt 0:00:35] Active counter play!} Qxg3+ {[%emt 0:00:02]} 78. Kf1 {[%emt 0:00:05] Qh1+ would kill now.} Qf4+ $1 {[%emt 0:00:58]} 79. Ke2 {[%emt 0:00:06] White wants to mate with Qd2.} Qg4+ $2 {[%emt 0:00:34][%mdl 8192]} (79... Kg7 $11) 80. Kd2 $18 {[%emt 0:00:49]} Qb4+ {[%emt 0:00:09]} 81. Kd1 {[%emt 0:00:59]} Qg4+ {[%emt 0:00:30]} 82. Kc1 {[%emt 0:00:27] White threatens Qd6+ and mate.} Qg1+ {[%emt 0:00:31]} 83. Kc2 {[%emt 0:00:06] Threatens to win with c7.} Qg6+ {[%emt 0:00:29]} 84. Kd2 {[%emt 0:00:05] Hoping for c7.} Qg7 $2 {[%emt 0:00:51]} (84... Qf6 $18 85. Qc5 Qd8+ 86. Ke3 Qe8+ 87. Kd4 Qd8+ 88. Ke5 Qh8+ 89. Ke6 Qg8+ 90. Kd7 Qg4+ 91. Kc7 Qg7+ 92. Kb8 Qg8+ 93. Kb7 Qb3+ 94. Kxa7 Qa4+ 95. Kb7 Qb3+ 96. Qb6 Qf3) 85. Qh1+ {[%emt 0:00:15] Weighted Error Value: White=0.06 (flawless) /Black=0.04 (flawless)} 1-0